bitfinex/quotes_BTCUSD_20250831
["timestamp","ask_amount","ask_price","bid_price","bid_amount"]
[1756619122436,1.34086925,108950.0,108940.0,0.25725096]
[1756619125277,0.67775393,108950.0,108940.0,0.25725096]
[1756619125479,1.34086925,108950.0,108940.0,0.25725096]
[1756619127101,1.34086925,108950.0,108940.0,0.10365096]
[1756619127306,1.34086925,108950.0,108940.0,0.25725096]
[1756619129055,1.34086925,108950.0,108940.0,0.10365096]
[1756619129259,1.34086925,108950.0,108940.0,0.25725096]
[1756619130433,1.34086925,108950.0,108940.0,0.10365096]
[1756619130803,1.34086925,108950.0,108940.0,0.25529096]
[1756619131965,1.34086925,108950.0,108940.0,0.10169096]
[1756619132193,1.3236499,108950.0,108940.0,0.25529096]
[1756619132410,1.34087627,108950.0,108940.0,0.25529096]
[1756619132571,0.67776095,108950.0,108940.0,0.25529096]
[1756619132781,1.34087627,108950.0,108940.0,0.25529096]
[1756619133531,1.34087627,108950.0,108940.0,0.25740096]
[1756619135063,1.25257995,108950.0,108940.0,0.25740096]
[1756619135466,1.2525861,108950.0,108940.0,0.25740096]
[1756619143023,1.25258722,108950.0,108940.0,0.25740096]
[1756619144428,0.5894719,108950.0,108940.0,0.25740096]
[1756619144628,1.25258722,108950.0,108940.0,0.25740096]
[1756619145232,0.5894719,108950.0,108940.0,0.25740096]
[1756619145579,1.25258722,108950.0,108940.0,0.25740096]
[1756619148671,1.24612767,108950.0,108940.0,0.25740096]
[1756619148967,1.34088442,108950.0,108940.0,0.25740096]
[1756619153728,1.34088461,108950.0,108940.0,0.25740096]
[1756619153986,1.34088468,108950.0,108940.0,0.25740096]
[1756619163359,1.32365667,108950.0,108940.0,0.25740096]
[1756619163532,1.34088989,108950.0,108940.0,0.25740096]
[1756619168909,0.58947825,108950.0,108940.0,0.25740096]
[1756619169055,1.25259357,108950.0,108940.0,0.25740096]
[1756619169508,1.25259357,108950.0,108940.0,0.25736096]
[1756619170574,1.25259485,108950.0,108940.0,0.25736096]
[1756619173439,1.40615485,108950.0,108940.0,0.25736096]
[1756619174205,1.38892305,108950.0,108940.0,0.25736096]
[1756619174408,1.40616111,108950.0,108940.0,0.25736096]
[1756619177270,1.40616111,108950.0,108940.0,0.25525096]
[1756619177470,1.40616111,108950.0,108940.0,0.10169096]
[1756619177878,1.40616111,108950.0,108940.0,0.25218096]
[1756619178220,1.49445743,108950.0,108940.0,0.25218096]
[1756619178432,1.49445743,108950.0,108940.0,0.25527096]
[1756619179535,1.49445743,108950.0,108940.0,0.09862096]
[1756619179741,1.50613647,108950.0,108940.0,0.09862096]
[1756619182131,1.50813647,108950.0,108940.0,0.09862096]
[1756619183567,1.50713647,108950.0,108940.0,0.09862096]
[1756619183792,1.50913647,108950.0,108940.0,0.09862096]
[1756619184745,1.50267249,108950.0,108940.0,0.09862096]
[1756619184944,1.50912754,108950.0,108940.0,0.09862096]
[1756619191358,1.35556754,108950.0,108940.0,0.09862096]
[1756619191889,1.50908754,108950.0,108940.0,0.09862096]
[1756619193700,5.89461854,108950.0,108940.0,0.09862096]
[1756619195639,5.89461516,108950.0,108940.0,0.09862096]
[1756619195839,6.31915283,108950.0,108940.0,0.09862096]
[1756619196054,6.34395887,108950.0,108940.0,0.09862096]
[1756619196257,6.36924034,108950.0,108940.0,0.09862096]
[1756619196946,6.41006387,108950.0,108940.0,0.09862096]
[1756619198296,6.48066387,108950.0,108940.0,0.09862096]
[1756619198963,6.32714387,108950.0,108940.0,0.09862096]
[1756619199170,6.48066387,108950.0,108940.0,0.09862096]
[1756619199330,6.49503343,108950.0,108940.0,0.09862096]
[1756619199737,6.34151343,108950.0,108940.0,0.09862096]
[1756619200088,6.49503343,108950.0,108940.0,0.09862096]
[1756619206331,6.49499738,108950.0,108940.0,0.09862096]
[1756619207271,6.49499687,108950.0,108940.0,0.09862096]
[1756619208057,6.34147687,108950.0,108940.0,0.09862096]
[1756619208260,6.49499687,108950.0,108940.0,0.09862096]
[1756619211204,6.46971268,108950.0,108940.0,0.09862096]
[1756619212930,6.31619268,108950.0,108940.0,0.09862096]
[1756619213070,6.46971268,108950.0,108940.0,0.09862096]
[1756619213471,6.46971314,108950.0,108940.0,0.09862096]
[1756619217126,6.46326308,108950.0,108940.0,0.09862096]
[1756619217342,6.49500145,108950.0,108940.0,0.09862096]
[1756619218279,6.46971726,108950.0,108940.0,0.09862096]
[1756619222480,6.50261824,108950.0,108940.0,0.09862096]
[1756619222856,6.50261824,108950.0,108940.0,0.10184096]
[1756619223253,6.50262237,108950.0,108940.0,0.10184096]
[1756619225277,6.52790673,108950.0,108940.0,0.10382096]
[1756619225529,6.50310069,108950.0,108940.0,0.10382096]
[1756619226339,6.47781633,108950.0,108940.0,0.10382096]
[1756619226476,5.90444235,108950.0,108940.0,0.10382096]
[1756619226702,6.03267451,108950.0,108940.0,0.10382096]
[1756619226908,6.03554612,108950.0,108940.0,0.10382096]
[1756619227118,5.88202612,108950.0,108940.0,0.10382096]
[1756619227363,6.03554612,108950.0,108940.0,0.10382096]
[1756619228904,5.68250054,108950.0,108940.0,0.10382096]
[1756619229555,5.52898054,108950.0,108940.0,0.10382096]
[1756619229736,5.68250054,108950.0,108940.0,0.10382096]
[1756619230849,6.02250054,108950.0,108940.0,0.10382096]
[1756619233716,5.98167701,108950.0,108940.0,0.10382096]
[1756619237617,5.97519786,108950.0,108940.0,0.10382096]
[1756619237828,5.98165426,108950.0,108940.0,0.10382096]
[1756619238493,6.06995058,108950.0,108940.0,0.10382096]
[1756619242970,6.06993881,108950.0,108940.0,0.10382096]
[1756619248266,6.04626534,108950.0,108940.0,0.10382096]
[1756619248467,6.06994145,108950.0,108940.0,0.10382096]
[1756619249909,5.91642145,108950.0,108940.0,0.10382096]
[1756619250216,6.06990145,108950.0,108940.0,0.10382096]
[1756619251076,5.73514512,108950.0,108940.0,0.10382096]
[1756619251250,5.88862512,108950.0,108940.0,0.10382096]
[1756619252154,5.73514631,108950.0,108940.0,0.10382096]
[1756619252357,5.88822631,108950.0,108940.0,0.10382096]
[1756619256180,5.91301764,108950.0,108940.0,0.10382096]
[1756619256599,5.57301764,108950.0,108940.0,0.10382096]
[1756619256801,5.88822631,108950.0,108940.0,0.10382096]
[1756619259126,5.87100732,108950.0,108940.0,0.10382096]
[1756619259322,5.88824413,108950.0,108940.0,0.10382096]
[1756619259873,5.88824312,108950.0,108940.0,0.10382096]
[1756619260344,5.73476312,108950.0,108940.0,0.10382096]
[1756619260497,5.88824312,108950.0,108940.0,0.10382096]
[1756619263031,5.88824077,108950.0,108940.0,0.10382096]
[1756619264065,5.81764077,108950.0,108940.0,0.10382096]
[1756619266743,5.81764146,108950.0,108940.0,0.10382096]
[1756619269140,5.81763986,108950.0,108940.0,0.10382096]
[1756619270110,5.81117851,108950.0,108940.0,0.10382096]
[1756619270314,5.81763957,108950.0,108940.0,0.10382096]
[1756619271014,5.81763954,108950.0,108940.0,0.10382096]
[1756619275109,5.87601168,108950.0,108940.0,0.10382096]
[1756619277035,5.87601168,108950.0,108940.0,0.10184096]
[1756619277234,5.96899169,108950.0,108940.0,0.09862096]
[1756619277433,6.32534118,108950.0,108940.0,0.09862096]
[1756619277653,6.35824216,108950.0,108940.0,0.09862096]
[1756619278633,6.35624216,108950.0,108940.0,0.09862096]
[1756619279024,6.35824216,108950.0,108940.0,0.09862096]
[1756619279228,6.35624216,108950.0,108940.0,0.09862096]
[1756619279439,6.35424216,108950.0,108940.0,0.09862096]
[1756619279650,6.35724216,108950.0,108940.0,0.09862096]
[1756619279858,6.35924216,108950.0,108940.0,0.09862096]
[1756619280273,0.52360414,108930.0,108910.0,0.0721143]
[1756619280512,5.38574732,108920.0,108910.0,0.0751343]
[1756619280711,1.00021632,108920.0,108910.0,0.0771643]
[1756619280939,1.05150378,108920.0,108910.0,0.0771643]
[1756619281144,1.05150378,108920.0,108910.0,0.00505]
[1756619282688,1.05150378,108920.0,108910.0,0.00605]
[1756619282902,1.07265132,108920.0,108910.0,0.00705]
[1756619283255,0.91917132,108920.0,108910.0,0.00505]
[1756619283466,1.07263973,108920.0,108910.0,0.00505]
[1756619284806,0.91915973,108920.0,108910.0,0.00505]
[1756619285013,1.07263973,108920.0,108910.0,0.00505]
[1756619286647,0.91915973,108920.0,108910.0,0.00505]
[1756619286819,1.07263973,108920.0,108910.0,0.00505]
[1756619290642,1.07261306,108920.0,108910.0,0.00505]
[1756619291475,1.07261209,108920.0,108910.0,0.00505]
[1756619297000,1.072613,108920.0,108910.0,0.00505]
[1756619300079,0.920993,108920.0,108910.0,0.0036625]
[1756619300266,1.074433,108920.0,108910.0,0.0036625]
[1756619301312,1.07444528,108920.0,108910.0,0.0036625]
[1756619302098,1.07444549,108920.0,108910.0,0.0036625]
[1756619305033,0.92100549,108920.0,108910.0,0.0036625]
[1756619305238,1.07444549,108920.0,108910.0,0.0036625]
[1756619308646,1.07444549,108920.0,108910.0,0.0016325]
[1756619308997,0.18365472,108900.0,108890.0,0.0706]
[1756619309142,0.84677004,108900.0,108890.0,0.5006916]
[1756619309373,0.51521238,108900.0,108890.0,0.5026616]
[1756619309606,0.51521238,108900.0,108890.0,0.16851001]
[1756619309787,1.18677004,108900.0,108890.0,0.07553]
[1756619309995,1.23161991,108900.0,108890.0,0.07553]
[1756619310193,1.23166754,108900.0,108890.0,0.07553]
[1756619310393,1.23166376,108900.0,108890.0,0.07653]
[1756619310964,1.23166376,108900.0,108890.0,0.00693]
[1756619312000,1.23165946,108900.0,108890.0,0.00693]
[1756619313123,1.23165946,108900.0,108890.0,0.00593]
[1756619313327,1.23165946,108900.0,108890.0,0.00493]
[1756619314790,0.56854414,108900.0,108890.0,0.00493]
[1756619314986,1.23165946,108900.0,108890.0,0.00493]
[1756619316731,1.32057578,108900.0,108890.0,0.00296]
[1756619316890,0.18367159,108890.0,108880.0,0.1564]
[1756619317098,0.85522925,108890.0,108880.0,0.25135001]
[1756619317546,0.88284125,108890.0,108880.0,0.25135001]
[1756619318170,0.88284125,108890.0,108880.0,0.25235001]
[1756619318943,0.88284125,108890.0,108880.0,0.25335001]
[1756619322190,0.90372354,108890.0,108880.0,0.25335001]
[1756619323032,0.90372354,108890.0,108880.0,0.09991001]
[1756619323213,0.90372354,108890.0,108880.0,0.25335001]
[1756619324357,0.92839762,108890.0,108880.0,0.25335001]
[1756619324555,0.92902762,108890.0,108880.0,0.25335001]
[1756619324916,0.90435354,108890.0,108880.0,0.25335001]
[1756619325566,0.90435354,108890.0,108880.0,0.00693]
[1756619325765,1.2359112,108890.0,108880.0,0.15544]
[1756619325939,1.40655572,108890.0,108880.0,0.002]
[1756619326157,5.79332672,108890.0,108880.0,0.002]
[1756619326366,5.88807474,108890.0,108880.0,0.002]
[1756619326734,5.88807474,108890.0,108880.0,0.001]
[1756619327001,0.52370533,108870.0,108860.0,0.34012221]
[1756619327208,0.85526299,108870.0,108860.0,0.43507222]
[1756619327565,0.88287899,108870.0,108860.0,0.43507222]
[1756619328395,0.88287899,108870.0,108860.0,0.43607222]
[1756619330064,0.88287899,108870.0,108860.0,0.43707222]
[1756619332555,0.88287899,108870.0,108860.0,0.25335001]
[1756619333669,0.88287899,108870.0,108860.0,0.43707222]
[1756619337175,0.367616,108870.0,108860.0,0.43707222]
[1756619337449,0.88287899,108870.0,108860.0,0.28363222]
[1756619337609,0.88287899,108870.0,108860.0,0.43707222]
[1756619340969,0.54287899,108870.0,108860.0,0.43707222]
[1756619342065,0.21132133,108870.0,108860.0,0.43707222]
[1756619342279,0.54287899,108870.0,108860.0,0.43707222]
[1756619344074,0.54486899,108870.0,108860.0,0.28363222]
[1756619344215,0.21132133,108870.0,108860.0,0.43707222]
[1756619344619,0.54287899,108870.0,108860.0,0.43707222]
[1756619344914,0.88287899,108870.0,108860.0,0.43707222]
[1756619355324,0.90011432,108870.0,108860.0,0.43707222]
[1756619356932,0.90209432,108870.0,108860.0,0.43703222]
[1756619357143,0.90209432,108870.0,108860.0,0.28363222]
[1756619357325,0.90011432,108870.0,108860.0,0.43703222]
[1756619357483,0.71640899,108870.0,108860.0,0.43703222]
[1756619357910,0.90011432,108870.0,108860.0,0.43703222]
[1756619359005,0.90011432,108870.0,108860.0,0.28363222]
[1756619359209,0.90011432,108870.0,108860.0,0.43703222]
[1756619361941,0.71640899,108870.0,108860.0,0.43703222]
[1756619362582,0.71640899,108870.0,108860.0,0.28363222]
[1756619362739,0.71640899,108870.0,108860.0,0.43703222]
[1756619363281,0.69917366,108870.0,108860.0,0.43703222]
[1756619365185,0.88287899,108870.0,108860.0,0.43703222]
[1756619366421,0.69917366,108870.0,108860.0,0.43703222]
[1756619371215,0.367616,108870.0,108860.0,0.43703222]
[1756619371433,0.69917366,108870.0,108860.0,0.43703222]
[1756619375103,0.99917366,108870.0,108860.0,0.43703222]
[1756619375738,0.327616,108870.0,108860.0,0.9395287]
[1756619375920,0.327616,108870.0,108860.0,0.79432053]
[1756619376484,0.3,108870.0,108860.0,0.79432053]
[1756619378063,0.3,108870.0,108860.0,0.46276287]
[1756619378225,0.3,108870.0,108860.0,0.79432053]
[1756619378436,0.3,108870.0,108860.0,1.12587819]
[1756619381257,0.3,108870.0,108860.0,1.144672]
[1756619383398,0.3,108870.0,108860.0,1.172281]
[1756619384164,0.3,108870.0,108860.0,1.171281]
[1756619384616,0.3,108870.0,108860.0,1.175281]
[1756619384996,0.3,108870.0,108860.0,1.174281]
[1756619385424,0.3,108870.0,108860.0,1.177281]
[1756619385805,0.3,108870.0,108860.0,1.327281]
[1756619386042,0.3,108870.0,108860.0,1.177281]
[1756619386360,0.05434408,108870.0,108860.0,1.177281]
[1756619396736,0.05434408,108870.0,108860.0,1.177201]
[1756619397752,0.05434408,108870.0,108860.0,1.023881]
[1756619397971,0.05434408,108870.0,108860.0,1.177201]
[1756619398844,0.05434408,108870.0,108860.0,0.36076568]
[1756619399052,0.05434408,108870.0,108860.0,0.51408568]
[1756619399317,0.05434408,108870.0,108860.0,1.177201]
[1756619405218,0.05434408,108870.0,108860.0,1.24317781]
[1756619409248,0.05434408,108870.0,108860.0,1.39317781]
[1756619409475,0.05434408,108870.0,108860.0,1.224384]
[1756619419966,0.05434408,108870.0,108860.0,0.56126868]
[1756619420171,0.05434408,108870.0,108860.0,1.224384]
[1756619425037,0.001021,108880.0,108870.0,0.53620181]
[1756619425232,0.001021,108880.0,108870.0,0.89789448]
[1756619425510,0.001021,108880.0,108870.0,1.23156214]
[1756619425711,0.001021,108880.0,108870.0,1.25916914]
[1756619425918,0.001021,108880.0,108870.0,0.92761148]
[1756619426361,0.001021,108880.0,108870.0,0.92961148]
[1756619426682,0.001021,108880.0,108870.0,0.93161148]
[1756619428937,0.001021,108880.0,108870.0,1.26316914]
[1756619430122,1e-08,108880.0,108870.0,1.60116914]
[1756619430323,1e-08,108880.0,108870.0,1.67014595]
[1756619430919,1e-08,108880.0,108870.0,1.66714595]
[1756619431178,1e-08,108880.0,108870.0,1.66514595]
[1756619431376,1e-08,108880.0,108870.0,1.67214595]
[1756619431789,1e-08,108880.0,108870.0,1.66914595]
[1756619431943,1e-08,108880.0,108870.0,1.67314595]
[1756619432342,1e-08,108880.0,108870.0,1.60716914]
[1756619432984,1e-08,108880.0,108870.0,1.67314595]
[1756619434914,4.763e-05,108900.0,108890.0,0.20461041]
[1756619435116,4.763e-05,108900.0,108890.0,0.85306808]
[1756619435304,0.00202763,108900.0,108890.0,0.85306808]
[1756619436141,0.00202763,108900.0,108890.0,0.85506808]
[1756619438287,0.00202763,108900.0,108890.0,1.00506808]
[1756619438513,0.00202763,108900.0,108890.0,0.52351042]
[1756619438698,0.00202763,108900.0,108890.0,0.85506808]
[1756619439044,0.00202763,108900.0,108890.0,0.86020808]
[1756619439237,0.00202763,108900.0,108890.0,0.85809808]
[1756619439438,0.33155766,108920.0,108910.0,0.18363786]
[1756619439804,0.35921132,108920.0,108910.0,0.33691786]
[1756619440018,0.33160532,108920.0,108910.0,0.33691786]
[1756619440619,0.33260532,108920.0,108910.0,0.33691786]
[1756619441441,0.33360532,108920.0,108910.0,0.33691786]
[1756619442939,0.66516298,108920.0,108910.0,0.33691786]
[1756619444952,0.00204766,108920.0,108910.0,0.33691786]
[1756619445159,0.66516298,108920.0,108910.0,0.33691786]
[1756619447137,1.00516298,108920.0,108910.0,0.33691786]
[1756619454317,1.00516298,108920.0,108910.0,0.33990786]
[1756619455300,1.00516298,108920.0,108910.0,0.43488787]
[1756619455301,0.66516298,108920.0,108910.0,0.43488787]
[1756619456119,0.66516298,108920.0,108910.0,0.43484787]
[1756619460776,0.66516298,108920.0,108910.0,0.28160787]
[1756619461021,0.66516298,108920.0,108910.0,0.43484787]
[1756619469329,0.00204766,108920.0,108910.0,0.43484787]
[1756619469668,0.66516298,108920.0,108910.0,0.43484787]
[1756619471776,0.00204766,108920.0,108910.0,0.43484787]
[1756619472196,0.66516298,108920.0,108910.0,0.43484787]
[1756619473231,0.33360532,108920.0,108910.0,0.45578669]
[1756619473573,0.33360532,108920.0,108910.0,0.48338869]
[1756619474187,0.00204766,108920.0,108910.0,0.48338869]
[1756619474395,0.33360532,108920.0,108910.0,0.48338869]
[1756619480198,0.33360532,108920.0,108910.0,0.48334869]
[1756619481926,0.33360532,108920.0,108910.0,0.63334869]
[1756619482129,0.33360532,108920.0,108910.0,0.48334869]
[1756619482646,0.33360532,108920.0,108910.0,0.63334869]
[1756619482828,0.33360532,108920.0,108910.0,0.48334869]
[1756619485468,0.00204766,108920.0,108910.0,0.48334869]
[1756619485670,0.33360532,108920.0,108910.0,0.48334869]
[1756619486050,0.33360532,108920.0,108910.0,0.63334869]
[1756619486402,0.33360532,108920.0,108910.0,0.48334869]
[1756619487642,0.33260532,108920.0,108910.0,0.48334869]
[1756619487842,0.33160532,108920.0,108910.0,0.48334869]
[1756619488044,0.33160532,108920.0,108910.0,0.48434869]
[1756619488804,0.33160532,108920.0,108910.0,0.48534869]
[1756619492940,4.766e-05,108920.0,108910.0,0.48534869]
[1756619493077,0.33160532,108920.0,108910.0,0.48534869]
[1756619497484,4.766e-05,108920.0,108910.0,0.48534869]
[1756619497726,0.33160532,108920.0,108910.0,0.48534869]
[1756619501385,4.766e-05,108920.0,108910.0,0.33214869]
[1756619501629,0.66316298,108920.0,108910.0,0.48534869]
[1756619501800,0.33160532,108920.0,108910.0,0.48534869]
[1756619502958,0.66316298,108920.0,108910.0,0.48534869]
[1756619503186,4.766e-05,108920.0,108910.0,0.48534869]
[1756619503356,0.66316298,108920.0,108910.0,0.48534869]
[1756619505685,4.766e-05,108920.0,108910.0,0.48534869]
[1756619505846,0.66316298,108920.0,108910.0,0.48534869]
[1756619508129,0.66316298,108920.0,108910.0,0.33214869]
[1756619508337,0.66316298,108920.0,108910.0,0.48534869]
[1756619512978,0.66316298,108920.0,108910.0,0.55594869]
[1756619516526,0.46487871,108920.0,108910.0,0.55594869]
[1756619517263,0.33155766,108920.0,108910.0,0.55594869]
[1756619518865,0.33155766,108920.0,108910.0,0.55590869]
[1756619519653,0.89192511,108940.0,108930.0,0.18360414]
[1756619519849,1.24718548,108940.0,108930.0,0.33685169]
[1756619520782,1.24818548,108940.0,108930.0,0.33685169]
[1756619521222,1.24818548,108940.0,108930.0,0.15324755]
[1756619521774,1.24818557,108940.0,108930.0,0.15324755]
[1756619522402,1.24818554,108940.0,108930.0,0.33685169]
[1756619522602,1.24918557,108940.0,108930.0,0.33685169]
[1756619523106,1.24918564,108940.0,108930.0,0.33685169]
[1756619524903,1.24918564,108940.0,108930.0,0.15324755]
[1756619525364,1.24918564,108940.0,108930.0,8.755e-05]
[1756619525517,1.24918564,108940.0,108930.0,0.15324755]
[1756619526342,1.24918564,108940.0,108930.0,0.33685169]
[1756619531904,1.24918564,108940.0,108930.0,0.15324755]
[1756619532667,1.24918564,108940.0,108930.0,0.33685169]
[1756619533258,1.22548277,108940.0,108930.0,0.33685169]
[1756619533437,1.24918796,108940.0,108930.0,0.34002169]
[1756619533640,1.24918796,108940.0,108930.0,0.15641755]
[1756619535567,1.24918796,108940.0,108930.0,0.34002169]
[1756619536218,1.2400086,108940.0,108930.0,0.34002169]
[1756619536423,1.21630341,108940.0,108930.0,0.34002169]
[1756619537669,1.00511532,108940.0,108930.0,0.4351217]
[1756619537869,0.66511532,108940.0,108930.0,0.4351217]
[1756619542291,0.84870261,108940.0,108930.0,0.4351217]
[1756619542513,0.66511532,108940.0,108930.0,0.4351217]
[1756619542715,0.84870261,108940.0,108930.0,0.4351217]
[1756619544098,0.84870261,108940.0,108930.0,0.2819617]
[1756619544279,0.84870261,108940.0,108930.0,0.4350817]
[1756619550684,0.66511532,108940.0,108930.0,0.4350817]
[1756619551051,0.84870261,108940.0,108930.0,0.4350817]
[1756619552981,0.84870261,108940.0,108930.0,0.24935756]
[1756619553983,0.84870261,108940.0,108930.0,0.4329617]
[1756619555421,0.84870261,108940.0,108930.0,0.09623756]
[1756619555648,0.84870261,108940.0,108930.0,0.4329617]
[1756619556815,0.84870261,108940.0,108930.0,0.4351117]
[1756619560806,0.84870261,108940.0,108930.0,0.25150756]
[1756619561005,0.84870261,108940.0,108930.0,0.4351117]
[1756619561219,0.84870261,108940.0,108930.0,0.2819917]
[1756619561519,0.84870261,108940.0,108930.0,0.4351117]
[1756619564333,0.66511532,108940.0,108930.0,0.4351117]
[1756619566403,0.002,108940.0,108930.0,0.4351117]
[1756619566649,0.66511532,108940.0,108930.0,0.4351117]
[1756619567728,0.84870261,108940.0,108930.0,0.4351117]
[1756619568192,0.66511532,108940.0,108930.0,0.4351117]
[1756619573599,0.84870261,108940.0,108930.0,0.4351117]
[1756619574125,0.51514495,108940.0,108930.0,0.4351117]
[1756619574307,0.66311532,108940.0,108930.0,0.4351117]
[1756619576846,0.56047475,108950.0,108940.0,0.18358729]
[1756619577008,0.58417093,108950.0,108940.0,0.18656729]
[1756619578200,1.24828625,108950.0,108940.0,0.18656729]
[1756619578346,1.25028625,108950.0,108940.0,0.18656729]
[1756619579592,1.25028625,108950.0,108940.0,0.00298]
[1756619580378,1.25028625,108950.0,108940.0,0.00503]
[1756619581022,1.25028625,108950.0,108940.0,0.18861729]
[1756619581224,0.3706,108950.0,108940.0,0.18861729]
[1756619581422,0.8857281,108950.0,108940.0,0.18861729]
[1756619582689,0.8857281,108950.0,108940.0,0.34169729]
[1756619583371,0.8857281,108950.0,108940.0,0.18861729]
[1756619583634,0.8857281,108950.0,108940.0,0.34165729]
[1756619588755,0.55417044,108950.0,108940.0,0.34165729]
[1756619588910,0.8857281,108950.0,108940.0,0.34165729]
[1756619598351,0.55417044,108950.0,108940.0,0.34165729]
[1756619598552,0.8857281,108950.0,108940.0,0.34165729]
[1756619602820,0.55417044,108950.0,108940.0,0.34165729]
[1756619603014,0.8857281,108950.0,108940.0,0.34165729]
[1756619604361,0.8857281,108950.0,108940.0,0.18861729]
[1756619604539,0.8857281,108950.0,108940.0,0.34161729]
[1756619609654,0.70215766,108950.0,108940.0,0.4345973]
[1756619609862,0.343,108950.0,108940.0,0.4345973]
[1756619610070,0.67455766,108950.0,108940.0,0.4621933]
[1756619614511,0.33455766,108950.0,108940.0,0.4621933]
[1756619615270,0.66611532,108950.0,108940.0,0.4621933]
[1756619616327,0.66611532,108950.0,108940.0,0.5327933]
[1756619622483,0.003,108950.0,108940.0,0.6827933]
[1756619622741,0.003,108950.0,108940.0,0.55373212]
[1756619622900,0.33455766,108950.0,108940.0,0.55373212]
[1756619623446,0.33355766,108950.0,108940.0,0.55373212]
[1756619623662,0.33155766,108950.0,108940.0,0.55373212]
[1756619632306,0.14925382,108950.0,108940.0,0.55373212]
[1756619632855,0.14925382,108950.0,108940.0,0.40073212]
[1756619633061,0.14925382,108950.0,108940.0,0.55373212]
[1756619634070,0.14925382,108950.0,108940.0,0.55369212]
[1756619634612,0.14925382,108950.0,108940.0,0.40073212]
[1756619634811,0.14925382,108950.0,108940.0,0.55373212]
[1756619636838,0.33155766,108960.0,108950.0,0.18357044]
[1756619637048,0.66311532,108960.0,108950.0,0.27962045]
[1756619637269,0.66311532,108960.0,108950.0,0.28164045]
[1756619637433,0.66311532,108960.0,108950.0,0.30923345]
[1756619637676,1.17822657,108960.0,108950.0,0.180553]
[1756619637871,1.17822657,108960.0,108950.0,0.15296]
[1756619638083,1.20782257,108960.0,108950.0,0.15296]
[1756619639754,1.20782257,108960.0,108940.0,0.098196]
[1756619639755,0.18357044,108950.0,108940.0,0.098196]
[1756619640084,0.84668576,108950.0,108940.0,0.5277233]
[1756619641555,0.84668576,108950.0,108940.0,0.5307933]
[1756619642966,0.18357044,108950.0,108940.0,0.5307933]
[1756619643176,0.84668576,108950.0,108940.0,0.5307933]
[1756619643584,0.84668576,108950.0,108940.0,0.22356]
[1756619643585,1.17824342,108950.0,108940.0,0.22356]
[1756619643797,1.51824342,108950.0,108940.0,0.22356]
[1756619644012,1.54584142,108950.0,108940.0,0.22356]
[1756619644137,1.21428376,108950.0,108940.0,0.22356]
[1756619644983,0.55116844,108950.0,108940.0,0.40714729]
[1756619645207,1.21428376,108950.0,108940.0,0.22356]
[1756619646079,1.21528376,108950.0,108940.0,0.22356]
[1756619646580,1.21628376,108950.0,108940.0,0.22356]
[1756619648112,1.21128376,108950.0,108940.0,0.22356]
[1756619654992,1.21128376,108950.0,108940.0,0.22663]
[1756619656827,0.54816844,108950.0,108940.0,0.22663]
[1756619657028,1.21128376,108950.0,108940.0,0.22663]
[1756619669047,1.21128376,108950.0,108940.0,0.15603]
[1756619669719,1.21128376,108950.0,108940.0,0.00307]
[1756619669895,1.21128376,108950.0,108940.0,0.15615]
[1756619672464,1.21128376,108950.0,108940.0,0.15814]
[1756619673066,0.54816844,108950.0,108940.0,0.15814]
[1756619673358,1.21128376,108950.0,108940.0,0.15814]
[1756619676912,0.54816844,108950.0,108940.0,0.34172729]
[1756619677110,1.21128376,108950.0,108940.0,0.15814]
[1756619678727,1.22228753,108950.0,108940.0,0.15747]
[1756619679163,1.2112356,108950.0,108940.0,0.15747]
[1756619683211,1.2112356,108950.0,108940.0,0.15946]
[1756619684569,1.2112356,108950.0,108940.0,0.34304729]
[1756619684570,0.54812028,108950.0,108940.0,0.34304729]
[1756619684717,1.2112356,108950.0,108940.0,0.34304729]
[1756619687064,1.21628376,108950.0,108940.0,0.34304729]
[1756619687528,1.21628376,108950.0,108940.0,0.4360273]
[1756619687742,1.03271332,108950.0,108940.0,0.4360273]
[1756619689083,0.369598,108950.0,108940.0,0.4360273]
[1756619689306,1.03271332,108950.0,108940.0,0.4360273]
[1756619689709,0.70115566,108950.0,108940.0,0.4360273]
[1756619690568,0.36115566,108950.0,108940.0,0.4360273]
[1756619691002,0.36115566,108950.0,108940.0,0.5860273]
[1756619691202,0.36115566,108950.0,108940.0,0.4360273]
[1756619691414,0.029598,108950.0,108940.0,0.4360273]
[1756619691574,0.36115566,108950.0,108940.0,0.4360273]
[1756619691908,0.029598,108950.0,108940.0,0.4360273]
[1756619692147,0.36115566,108950.0,108940.0,0.4360273]
[1756619692297,0.33355766,108950.0,108940.0,0.4360273]
[1756619693087,0.33355766,108950.0,108940.0,0.4636233]
[1756619694369,0.002,108950.0,108940.0,0.4636233]
[1756619694562,0.33355766,108950.0,108940.0,0.4636233]
[1756619695156,0.67355766,108950.0,108940.0,0.4636233]
[1756619696293,0.67355766,108950.0,108940.0,0.4642233]
[1756619697015,1.00511532,108950.0,108940.0,0.3092233]
[1756619697198,1.00511532,108950.0,108940.0,0.4642233]
[1756619697580,0.342,108950.0,108940.0,0.4642233]
[1756619697782,0.67355766,108950.0,108940.0,0.3092233]
[1756619697979,0.67355766,108950.0,108940.0,0.4642233]
[1756619698302,0.67355766,108950.0,108940.0,0.4366273]
[1756619698464,0.67355766,108950.0,108940.0,0.2816273]
[1756619698689,0.67355766,108950.0,108940.0,0.4366673]
[1756619699092,0.8571281,108950.0,108940.0,0.2816273]
[1756619699270,1.18868576,108950.0,108940.0,0.4366673]
[1756619704597,1.18868576,108950.0,108940.0,0.2816273]
[1756619704799,1.18868576,108950.0,108940.0,0.4366273]
[1756619707724,1.18868576,108950.0,108940.0,0.2816273]
[1756619708068,1.18868576,108950.0,108940.0,0.09298001]
[1756619708205,0.84868576,108950.0,108940.0,0.155]
[1756619708413,0.84868576,108950.0,108930.0,0.25732791]
[1756619708414,0.18358729,108940.0,108930.0,0.25732791]
[1756619708606,0.84670261,108940.0,108930.0,0.50530792]
[1756619709161,0.84670261,108940.0,108930.0,0.50738792]
[1756619709493,1.17826027,108940.0,108930.0,0.16670756]
[1756619709581,1.17826027,108940.0,108930.0,0.32182756]
[1756619709794,0.18358729,108940.0,108930.0,0.5075117]
[1756619709972,0.84670261,108940.0,108930.0,0.32390756]
[1756619710562,0.84670261,108940.0,108930.0,0.5075117]
[1756619711451,0.84670261,108940.0,108930.0,0.32390756]
[1756619711705,0.84670261,108940.0,108930.0,0.32398756]
[1756619713815,1.17826027,108940.0,108930.0,0.07068755]
[1756619714013,1.17826027,108940.0,108930.0,0.22584755]
[1756619714218,1.20586027,108940.0,108930.0,0.22584755]
[1756619715395,1.20686027,108940.0,108930.0,0.22584755]
[1756619716344,1.20786027,108940.0,108930.0,0.22584755]
[1756619717246,1.20786027,108940.0,108930.0,0.22888755]
[1756619720929,1.20786027,108940.0,108930.0,0.15828755]
[1756619724647,1.20786027,108940.0,108930.0,0.15524755]
[1756619724861,1.20786027,108940.0,108930.0,0.15520755]
[1756619725683,1.29615659,108940.0,108930.0,8.755e-05]
[1756619725883,1.20786027,108940.0,108930.0,0.15520755]